Cogmind - Beta 17.1 @@@ ROGUE MODE // 2026.08.26 @ 11:09:58 Player: Infomantis Result: Destroyed by Z6-RP7(R) with Subdweller Laser Performance ------------- Evolutions (0) 0 Regions Visited (2) 400 Robots Destroyed (25) 125 Value Destroyed (513) 513 Prototype IDs (0) 0 Alien Tech Used (0) 0 Bonus (0) 0 TOTAL SCORE: 1038 Bonus ------- None Cogmind --------- Core Integrity 0/250 Matter 294/300 Energy 125/125 System Corruption 0% Temperature Cool (6) Movement Treading (240) Ox1 Location -10/Subcaves Parts ------- > --- POWER (1) -------- Light Ion Engine > --- PROPULSION (2) --- Light Treads Compact Wheel > --- UTILITY (2) ------ Large Storage Unit Structural Scanner > --- WEAPON (2) ------- Makeshift Laser Assault Rifle > --- INVENTORY (15) --- Subdweller Monowheel Subdweller Monowheel Improved Heat Sink Huge Storage Unit Utility Shielding Utility Shielding EM Pulse Gun Small Laser Subdweller Laser Light Assault Rifle Light Assault Rifle Light Cannon Grenade Launcher Mining Laser Scrap Shield Fragment (47) Peak State ------------ > --- POWER ------------ Light Ion Engine > --- PROPULSION ------- Light Treads Compact Wheel > --- UTILITY ---------- Large Storage Unit Structural Scanner > --- WEAPON ----------- Makeshift Laser Assault Rifle > --- INVENTORY -------- Subdweller Monowheel Improved Heat Sink Disposable Heat Sink Huge Storage Unit Utility Shielding Utility Shielding EM Pulse Gun Small Laser Subdweller Laser Light Assault Rifle Light Assault Rifle Light Cannon Grenade Launcher Mining Laser Scrap Shield Fragment [Rating: 12] Favorites ----------- Power Light Ion Engine Engine Light Ion Engine Propulsion Light Treads Treads Light Treads Wheel Compact Wheel Utility Large Storage Unit Device Structural Scanner Storage Large Storage Unit Weapon Assault Rifle Energy Gun Small Laser Ballistic Gun Assault Rifle Ballistic Cannon Light Cannon Special Weapon Mining Laser Build | -11 -10 -10 ------- Run | Yrd Mat Sub Slots Evolved . | . . . Power . | . . . Propulsion . | . . . Utility . | . . . Weapon . | . . . Parts Attached 18 | 7 5 6 Power 2 | 1 . 1 Engine 2 | 1 . 1 Core . | . . . Reactor . | . . . Propulsion 4 | 2 . 2 Treads 3 | 2 . 1 Leg . | . . . Wheel 1 | . . 1 Hover . | . . . Flight . | . . . Utility 5 | 2 3 . Device 2 | 1 1 . Storage 3 | 1 2 . Processor . | . . . Hackware . | . . . Protection . | . . . Artifact . | . . . Weapon 7 | 2 2 3 Energy Gun 3 | 1 1 1 Energy Cannon . | . . . Ballistic Gun 2 | 1 1 . Ballistic Cannon 1 | . . 1 Launcher . | . . . Special Weapon 1 | . . 1 Impact Weapon . | . . . Slashing Weapon . | . . . Piercing Weapon . | . . . Special Melee Weapon . | . . . Unidentified Prototypes . | . . . Parts Lost 5 | . 2 3 Power 1 | . . 1 Propulsion 2 | . . 2 Utility 1 | . 1 . Weapon 1 | . 1 . Highest Loss Streak 3 | . 2 3 To Critical Strikes . | . . . Average Backups 11 | 2 9 12 Power . | 1 1 . Propulsion 1 | . 1 1 Utility 3 | . 2 4 Weapon 5 | 1 4 6 Tool/Special . | . . . Unused Backups 14 | . 3 11 Power 1 | . 1 . Propulsion 2 | . . 2 Utility 5 | . 1 4 Weapon 6 | . 1 5 Tool/Special . | . . . Average Slot Usage (%) 99 | . 99 99 Engine 13 | . 14 13 Treads 23 | . 28 20 Wheel 4 | . . 7 Device 13 | . 13 14 Storage 13 | . 13 14 Energy Gun 13 | . 14 13 Ballistic Gun 13 | . 13 14 Peak Build Rating 12 | 7 8 12 Average Rating 8 | 6 7 9 On Entrance 5 | . 7 8 Avg Prop Armor Cover (%) 2 | . . 2 Naked Turns . | . . . Heaviest Build 87 | 12 87 29 Greatest Support 40 | 40 40 40 Greatest Overweight (x) 2 | . 2 1 Average Overweight (x) . | . . . Largest Inventory Capacity 25 | 8 25 15 Average Capacity 13 | 7 12 15 Most Carried 15 | 6 14 15 Average Carried 11 | 3 9 13 Final Capacity 15 | 8 15 15 Final Carried 15 | 6 13 15 Class Distribution -------------------- 66% | Mutant 33% | Scavenger-Mutant Dominant Class ---------------- Mutant | -10/Materials Scavenger-Mutant | -10/Subcaves Resources | -11 -10 -10 ----------- Run | Yrd Mat Sub Matter Collected 583 | 285 144 154 Remotely . | . . . Salvage Created 758 | 84 560 114 Parts 57 | 12 35 10 Haulers Intercepted 2 | . 2 . Recyclers Shooed . | . . . Parts Field Recycled . | . . . Retrieved Matter . | . . . Parts Self-Destructed 11 | . . 11 Prevented . | . . . Parts Restored . | . . . Kills | -11 -10 -10 ------- Run | Yrd Mat Sub Combat Hostiles Destroyed 17 | . 14 3 Guns 16 | . 13 3 AOE 1 | . 1 . Classes Destroyed 8 | 2 5 1 Worker 1 | . 1 . Tunneler 3 | 2 1 . Hauler 2 | . 2 . Recycler 1 | 1 . . Watcher 1 | . 1 . Swarmer 6 | . 6 . Grunt 8 | . 8 . Subdweller 3 | . . 3 Best Kill Streak 7 | 2 7 2 Combat Bots Only 3 | . 3 2 Max Kills in Single Turn 1 | 1 1 1 Gunslinging . | . . . Exploded 1 | . 1 . Melee . | . . . Uniques/NPCs Destroyed . | . . . Combat | -11 -10 -10 -------- Run | Yrd Mat Sub Hostile Shots Fired 97 | . 70 27 Missed 27 | . 18 9 Hits 70 | . 52 18 Projectile 70 | . 52 18 Critical Strikes 2 | . . 2 Damage Taken 1033 | . 582 451 Core 252 | . 121 131 Absorbed by Shields . | . . . Core Remaining (%) 100 | 100 . . Volleys Fired 69 | 5 40 24 Largest 2 | 2 2 2 Hottest 100 | 60 60 100 Shots Fired 129 | 10 78 41 Gun 116 | 10 78 28 Cannon 6 | . . 6 Launcher . | . . . Special 7 | . . 7 Kinetic 66 | 5 38 23 Thermal 63 | 5 40 18 Explosive . | . . . Electromagnetic . | . . . Robot Hit Streak 13 | 4 6 13 Robot Miss Streak 4 | 4 3 2 Penetration Max . | . . . Secondary Targets . | . . . Shots Hit Robots 85 | 4 53 28 Core Hits 37 | 4 26 7 Critical Kills . | . . . Critical Parts Destroyed . | . . . Critical Strikes 2 | . . 2 Burn 2 | . . 2 Melee Attacks . | . . . Impact . | . . . Slashing . | . . . Piercing . | . . . Sneak Attacks . | . . . Combat Hostiles . | . . . Follow-up Attacks . | . . . Damage Inflicted 1159 | 59 689 411 Guns 1092 | 59 689 344 Cannons 67 | . . 67 Explosions . | . . . Melee . | . . . Ramming . | . . . Kinetic 674 | 35 380 259 Thermal 485 | 24 309 152 Explosive . | . . . Electromagnetic . | . . . Impact . | . . . Slashing . | . . . Piercing . | . . . Highest Corruption . | . . . Average Corruption . | . . . Corruption Purged . | . . . Corruption Blocked . | . . . Overload Shots . | . . . Overflow Damage . | . . . Projectiles . | . . . Explosions . | . . . Melee . | . . . Knockbacks . | . . . Impact . | . . . Kinetic . | . . . Secondary . | . . . Self-Inflicted Damage . | . . . Shots . | . . . Rammed . | . . . Targets Rammed 1 | . 1 . Kicked . | . . . Crushed 1 | . 1 . Highest Temperature 275 | . 75 275 Average Temperature 42 | . 23 161 Received Heat Transfer 623 | . 189 434 Siege Activations . | . . . Martial Activations . | . . . Shielding Activations . | . . . Robots Disrupted . | . . . Combat Hostiles . | . . . Robots Corrupted . | . . . Combat Hostiles . | . . . Parts Fried . | . . . Impact Corruptions . | . . . Robots Melted . | . . . Combat Hostiles . | . . . Parts Melted 1 | . . 1 Heat Transferred 1231 | 50 700 481 Parts Sabotaged . | . . . Parts Stolen . | . . . Parts Stripped . | . . . Power Chain Reactions . | . . . Alert | -11 -10 -10 ------- Run | Yrd Mat Sub Maximum Alert Level . | . . . Low Security (%) 100 | 100 100 . Level 1 . | . . . Level 2 . | . . . Level 3 . | . . . Level 4 . | . . . Level 5 . | . . . High Security . | . . . Max Security . | . . . Peak Influence 129 | 10 129 . Initial . | . . . Average 40 | . 49 . Influence Increases 394 | 15 379 . Destroy 0b10 Robot/C 280 | . 280 . Destroy 0b10 Robot/NC 40 | 15 25 . Destroy Leader 56 | . 56 . Successful Hack 3 | . 3 . Lose Combat Pursuer 15 | . 15 . Influence Decreases 394 | 15 288 91 Entered New Map 44 | . . 44 Time Decay 330 | 15 268 47 Lost Part 20 | . 20 . Squads Dispatched 2 | . 2 . Investigation . | . . . Extermination . | . . . Reinforcement 2 | . 2 . Assault . | . . . Garrison . | . . . Intercept . | . . . Searches Triggered . | . . . Construction Impeded . | . . . Haulers Reinforced . | . . . Active Scanning Responses . | . . . Cargo Convoy Interrupts . | . . . Stealth | -11 -10 -10 --------- Run | Yrd Mat Sub Distress Signals 1 | . 1 . Communications Jammed . | . . . Distress Signals . | . . . Times Spotted 23 | . 19 4 Peak Tracking Total 5 | . 5 1 Tactical Retreats 1 | . 1 . Traps | -11 -10 -10 ------- Run | Yrd Mat Sub Traps Triggered . | . . . Indirectly . | . . . Trap Hack Attempts . | . . . Triggered . | . . . Disarmed . | . . . Reprogrammed . | . . . Reused . | . . . Traps Extracted . | . . . Installed . | . . . Triggered . | . . . Machines | -11 -10 -10 ---------- Run | Yrd Mat Sub Machines Disabled . | . . . Max in Single Turn . | . . . Machines Repaired . | . . . Machines Dismantled . | . . . Machines Sabotaged . | . . . Overloaded Fab Kills . | . . . Hacking | -11 -10 -10 --------- Run | Yrd Mat Sub Machines Accessed 3 | . 2 1 Terminals 2 | . 2 . Fabricators . | . . . Repair Stations . | . . . Recycling Units . | . . . Scanalyzers . | . . . Garrison Access . | . . . Total Hacks 6 | . 2 4 Successful 6 | . 2 4 Failed . | . . . Catastrophic . | . . . Database Lockouts . | . . . Manual . | . . . Terminals 2 | . 2 . Fabricators . | . . . Repair Stations . | . . . Recycling Units . | . . . Scanalyzers . | . . . Garrison Access . | . . . Terminal Hacks 6 | . 2 4 Record 4 | . . 4 Locate Traps 1 | . 1 . Maintenance Status 1 | . 1 . Fabricator Hacks . | . . . Repair Station Hacks . | . . . Recycling Unit Hacks . | . . . Scanalyzer . | . . . Garrison Access Hacks . | . . . Unauthorized Hacks . | . . . Terminals . | . . . Fabricators . | . . . Repair Stations . | . . . Recycling Units . | . . . Scanalyzers . | . . . Garrison Access . | . . . Data Cores Recovered . | . . . Used . | . . . Hacking Detections . | . . . Full Trace Events . | . . . Feedback Events . | . . . Feedback Blocked . | . . . Robot Schematics Acquired . | . . . Robots Built . | . . . Authchips . | . . . Time . | . . . Total Robot Build Rating . | . . . Part Schematics Acquired . | . . . Parts Built . | . . . Authchips . | . . . Time . | . . . Total Part Build Rating . | . . . Part Studies Acquired . | . . . Parts Repaired . | . . . Time . | . . . Parts Recycled . | . . . Recycled Matter . | . . . Retrieved Matter . | . . . Retrieved Components . | . . . Parts Scanalyzed . | . . . Part Schematics Acquired . | . . . Parts Damaged . | . . . Bothacking | -11 -10 -10 ------------ Run | Yrd Mat Sub Used RIF Installer . | . . . Robots Hacked . | . . . Non-combat . | . . . Combat . | . . . Robot Hacks Applied . | . . . Relay Couplers Released . | . . . Fabnet Peak Effective % . | . . . Robots Rewired . | . . . Allies Hacked . | . . . Hacks Repelled . | . . . Allies | -11 -10 -10 -------- Run | Yrd Mat Sub Total Allies . | . . . Largest Group . | . . . Highest-Rated Group . | . . . Highest-Rated Ally . | . . . Total Orders . | . . . Ally Attacks . | . . . Total Damage . | . . . Kills . | . . . Allies Corrupted . | . . . Allies Melted . | . . . Intel | -11 -10 -10 ------- Run | Yrd Mat Sub Active Infowar (turns) 2548 | 130 727 1691 Structural 1703 | . 12 1691 Seismic 845 | 130 715 . Robot Analysis Total . | . . . Derelict Logs Recovered . | . . . Drone Launches . | . . . Drone Recoveries . | . . . Exploration | -11 -10 -10 ------------- Run | Yrd Mat Sub Turns Passed 2594 | 170 733 1691 Spaces Moved 1212 | 93 306 813 Core 9 | 9 . . Treads 1203 | 84 306 813 Legs . | . . . Wheels . | . . . Hover . | . . . Flight . | . . . Fastest Speed 50 | 50 160 160 Average Speed 182 | 149 165 193 Slowest Speed 320 | 160 320 240 Overloaded Moves . | . . . Propulsion Burnouts . | . . . Robots Hopped . | . . . Potential Cave-ins . | . . . Cave-ins Triggered . | . . . Exploration Rate (%) 30 | 6 44 41 Regions Visited 2 Branch Regions 1 Pre-discovered Areas 1 | . . 1 Known Exits Taken . | . . . Unknown Exits Taken 2 | 1 1 . Scrap Searched 1 | . . 1 Spaces Dug . | . . . Terrain Destroyed . | . . . Melee . | . . . Projectile . | . . . AOE . | . . . Terrain Rammed . | . . . Walls Destroyed . | . . . Machines Disabled . | . . . Actions | -11 -10 -10 --------- Run | Yrd Mat Sub Total 1444 | 111 457 876 Wait 108 | 1 82 25 Move 1210 | 92 305 813 Hop . | . . . Pick Up 28 | 6 17 5 Fast Attach 9 | 7 2 . Attach 4 | . 1 3 Detach . | . . . Swap 8 | . 3 5 Drop 7 | . 6 1 Fire 69 | 5 40 24 Melee . | . . . Ram . | . . . Kick . | . . . Crush 1 | . 1 . Escape Stasis . | . . . Rewire . | . . . Trap . | . . . Miscellaneous . | . . . Route ------- -11/Scrapyard -10/Materials (discovered 2 exits: [*Mat] / *Sub) -10/Subcaves History --------- Turn | Location | Event 2 | -11/Scrapyard | Met Revision 17 3 | -11/Scrapyard | Discovered new exit (range 16) 171 | -11/Scrapyard | Entered Materials 305 | -10/Materials | Build established: Mutant 351 | -10/Materials | Discovered new exit (range 15) 869 | -10/Materials | Discovered new exit (range 8) 904 | -10/Materials | Entered Subcaves 980 | -10/Subcaves | Learned location of Zion (-7) 980 | -10/Subcaves | Met a Zionite searching for "candidates" 1485 | -10/Subcaves | Visited Clippyterm 1490 | -10/Subcaves | Learned Factory stockpile data 1522 | -10/Subcaves | A swath of the cavern ceiling suddenly collapsed 1720 | -10/Subcaves | Core integrity fell below 50% 1756 | -10/Subcaves | Lost 3 parts (1p2n) 2031 | -10/Subcaves | Build established: Scavenger-Mutant 2311 | -10/Subcaves | Core integrity fell below 20% 2595 | -10/Subcaves | Destroyed by Z6-RP7(R) with Subdweller Laser Last Messages --------------- 01747_ Acquired 3 matter. 01946_ Acquired 12 matter. 01948_ Searching scrap... 01948_ Found Mak. Laser. 01948_ Found 45 Matter. 01949_ Acquired 45 matter. 02086_ Acquired 15 matter. 02091_ Acquired 22 matter. 02298_ 60-ZLN(R) destroyed. 02307_ NG-6LT(R) suffers critical hit (Burn). 02311_ Subatomizers dissect the Sub. Power Source. 02313_ NG-6LT(R) destroyed. 02318_ Acquired 27 matter. 02323_ Acquired Sub. Laser. 02326_ Subatomizers dissect the Sub. Power Source. 02329_ Acquired Sub. Monowheel. 02350_ Subatomizers dissect the Sub. Optics. 02382_ Dropped Disposable Heat Sink. 02383_ Acquired Sub. Monowheel. 02590_ Z6-RP7(R) suffers critical hit (Burn). Map ----- +----------------------------------------------------+ | ???????????????????????????????????????? ? | | ???????????????????????????????????????? ### | | ??????????????????#####?????????????????## ### | | ???????????????#########????????????????## ### | | ??????????????###### ###????????????????## #### | | ?????????????#### ##????????????????## #### | | ?????????????### ##????????????????## #### | | ????????????### ##????????????????## | | ????????????### ###???????????????## | | ????????????## ####??????????????## | | ????????????## ###??????????????## ### | | ????????????### ##########???##### #### | | ????????????### ############?########### | | ????????????### ####### ## ####### ###### # | | ???????????### ######### ##### ##### # | | ???????????### ######### ## # | | ???????????## ## ## ## # | | ???????????## ########## ## # | | ???????????## ########## ## ## | | ???????????### ####### ### | | ???????????##### ##### % ### | | ????????????##### #### ### ## | | ??????????????### ###### ### # | | ?????????????#### ######## ## ## | | ?????????????### ######### #### | | ?????????????## #### @##### #### | | ?????????????## ## ###### #### | | ???????????##### ##### ## ## | | ??????????###### R ## ## # | | ??????????### ## ## | | ??????????## | | ??????????### | | ??????????#### ## ## ## | | ???????????#### ## ### ## ## | | ????????????### ### #### ### # | | ????????????### ## ##### ### # | | ???????????#### ### ### ### ## ## | | ???????????### ### ## ### ## ### | | ???????????## ###### &! ###### ######## # | | ???????????### ######## &%& "### ########" | | ???????????########??#### ! # # ####?###" | | ????????????######???#### #" & #########" | | ???????????????????##### ### *%! ######" | | ???????????????????#### ### ####! ####""# | | ???????????????????## ## ### ##### """##"## | | ?????????????????#### ### ######## "#""" #" | | ????????????????##### ###########" ######"# | | ????????????????### #""#"###"" ######"" | | ????????????????## """ "" " """ ##??###" | | ????????????????## """ " " " ####??#### | +----------------------------------------------------+ Best States ------------- Heat Dissipation 25 Energy Generation 10 Energy Capacity 125 Matter Stores 300 Matter Capacity 300 Sight Range 16 Terrain Scan Density 10 Evasion (%) 40 Recoil Reduction 2 Item Schematics ----------------- None Robot Schematics ------------------ None Fabricated ------------ Nothing Repaired ---------- Nothing Studied --------- None Alien Tech Used ----------------- None Achievements -------------- None Challenges ------------ None Game ------ Seed DynamicPlatingBarrier Manual? 0 Play Time 00:10:54 Cumulative 695.9 hours Start 2026.08.26 @ 10:39:26 End 2026.08.26 @ 11:09:58 Sessions 1 Manual Loads 0 Difficulty Rogue Special Mode None Game No. 391 Rogue 366 Adventurer 7 Explorer 18 Win Type - Total 69 Types 44/3/9/2/2/1/2/4/0/2 Lore% 95 Gallery% 88 Achievement% 76 Wizard Run 0 Options --------- Layout 0 ASCII 0 Keyboard 0 Movement Numpad Keybinds 0 Fullscreen 1 Font 18/SmallcapsGlow Map View 76x50 Zoom Use 0% Tactical HUD 1 Map Filters NONE Filters NONE Steam 1 RUN: 3bd20f04-914c-4e38-b30e-2301d4e0c261